[Event "Late-Titled-Tuesday-Blitz-October-24-2023"]
[Site "Chess.com"]
[Date "2023.10.24"]
[Round "1"]
[White "colegiodemadrid"]
[Black "Binary010"]
[Result "0-1"]
[WhiteElo "2482"]
[BlackElo "2850"]
[TimeControl "180+1"]
[EndTime "14:06:40 PDT"]
[Termination "Binary010 won by resignation"]

1. e4 {[%clk 0:03:00.9]} 1... e5 {[%clk 0:02:58.8]} 2. Nf3 {[%clk 0:02:59.7]}
2... Nc6 {[%clk 0:02:59.2]} 3. Bc4 {[%clk 0:03:00.3]} 3... Bc5 {[%clk
0:02:58.8]} 4. d4 {[%clk 0:03:00.8]} 4... Bxd4 {[%clk 0:02:55.7]} 5. Nxd4 {[%clk
0:03:01]} 5... Nxd4 {[%clk 0:02:55.6]} 6. Be3 {[%clk 0:03:01.6]} 6... Nc6 {[%clk
0:02:47.6]} 7. Qg4 {[%clk 0:02:59.6]} 7... Qf6 {[%clk 0:02:28.6]} 8. Nc3 {[%clk
0:02:58.3]} 8... d5 {[%clk 0:02:18.4]} 9. Qg3 {[%clk 0:02:56.1]} 9... dxc4
{[%clk 0:02:10.9]} 10. Nd5 {[%clk 0:02:55.8]} 10... Qg6 {[%clk 0:01:27.7]} 11.
Nxc7+ {[%clk 0:02:52.7]} 11... Kd8 {[%clk 0:01:27.8]} 12. Qxg6 {[%clk
0:02:48.8]} 12... hxg6 {[%clk 0:01:26.9]} 13. Nxa8 {[%clk 0:02:49.7]} 13... Be6
{[%clk 0:01:18.6]} 14. b4 {[%clk 0:02:33.7]} 14... Kc8 {[%clk 0:00:52]} 15. b5
{[%clk 0:02:31.2]} 15... Nd4 {[%clk 0:00:52.1]} 16. Bxd4 {[%clk 0:02:22.3]}
16... exd4 {[%clk 0:00:51.7]} 17. b6 {[%clk 0:02:23.2]} 17... Kb8 {[%clk
0:00:41.2]} 18. Nc7 {[%clk 0:02:22.1]} 18... axb6 {[%clk 0:00:41.9]} 19. Nb5
{[%clk 0:02:20.2]} 19... d3 {[%clk 0:00:36.6]} 20. cxd3 {[%clk 0:02:19.7]} 20...
cxd3 {[%clk 0:00:36.9]} 21. O-O-O {[%clk 0:02:17.1]} 21... Nf6 {[%clk
0:00:34.6]} 22. f3 {[%clk 0:02:16]} 22... Rc8+ {[%clk 0:00:31.9]} 23. Kb2 {[%clk
0:02:16]} 23... Rc2+ {[%clk 0:00:30.8]} 24. Kb1 {[%clk 0:02:14.6]} 24... Bxa2+
{[%clk 0:00:08.2]} 25. Ka1 {[%clk 0:02:14.4]} 25... Be6 {[%clk 0:00:04.2]} 26.
Rxd3 {[%clk 0:02:14.2]} 26... Nd7 {[%clk 0:00:04.4]} 27. Nd4 {[%clk 0:02:11.8]}
27... Ra2+ {[%clk 0:00:03.2]} 28. Kb1 {[%clk 0:02:12.3]} 28... Bc4 {[%clk
0:00:03.4]} 29. Rc3 {[%clk 0:02:04.4]} 29... Ra4 {[%clk 0:00:03.5]} 30. Nc2
{[%clk 0:02:00.1]} 30... b5 {[%clk 0:00:03.4]} 31. Rd1 {[%clk 0:01:59.8]} 31...
Ne5 {[%clk 0:00:02.1]} 32. f4 {[%clk 0:01:56]} 32... Nc6 {[%clk 0:00:01.8]} 33.
Nd4 {[%clk 0:01:46.9]} 33... Nxd4 {[%clk 0:00:01.3]} 34. Rxd4 {[%clk 0:01:46.7]}
34... Ba2+ {[%clk 0:00:02.1]} 35. Kb2 {[%clk 0:01:46.9]} 35... Rxd4 {[%clk
0:00:03]} 36. Kxa2 {[%clk 0:01:47.3]} 36... Rxe4 {[%clk 0:00:03.6]} 37. g4
{[%clk 0:01:45.5]} 37... Rxf4 {[%clk 0:00:03.7]} 38. h3 {[%clk 0:01:44.8]} 38...
b4 {[%clk 0:00:04.1]} 39. Re3 {[%clk 0:01:43.9]} 39... Kc7 {[%clk 0:00:03.7]}
40. Kb3 {[%clk 0:01:43.3]} 40... Kc6 {[%clk 0:00:04.1]} 41. Re7 {[%clk
0:01:41.6]} 41... b6 {[%clk 0:00:03.8]} 42. Re8 {[%clk 0:01:41.3]} 42... g5
{[%clk 0:00:03.9]} 43. Re5 {[%clk 0:01:41.4]} 43... f6 {[%clk 0:00:03.8]} 44.
Re6+ {[%clk 0:01:42]} 44... Kc5 {[%clk 0:00:04]} 45. Re8 {[%clk 0:01:42.7]}
45... Rf3+ {[%clk 0:00:04.2]} 46. Kb2 {[%clk 0:01:43.6]} 46... b5 {[%clk
0:00:03.5]} 47. Rc8+ {[%clk 0:01:44.5]} 47... Kd4 {[%clk 0:00:03.7]} 48. Rd8+
{[%clk 0:01:43.9]} 48... Ke3 {[%clk 0:00:04.4]} 49. Re8+ {[%clk 0:01:44.2]}
49... Kf2 {[%clk 0:00:04.3]} 50. Re7 {[%clk 0:01:43.4]} 50... Kg2 {[%clk
0:00:04.5]} 51. Rxg7 {[%clk 0:01:44]} 51... Kxh3 {[%clk 0:00:04.9]} 52. Rb7
{[%clk 0:01:44.1]} 52... Kxg4 {[%clk 0:00:05.2]} 53. Rxb5 {[%clk 0:01:45]} 53...
f5 {[%clk 0:00:05.6]} 54. Rxb4+ {[%clk 0:01:44.3]} 54... f4 {[%clk 0:00:06.4]}
55. Kc2 {[%clk 0:01:44.6]} 55... Kg3 {[%clk 0:00:06.9]} 56. Kd2 {[%clk
0:01:45.1]} 56... g4 {[%clk 0:00:07.6]} 57. Ke2 {[%clk 0:01:45.3]} 57... Rf2+
{[%clk 0:00:07.9]} 58. Ke1 {[%clk 0:01:45.9]} 58... Ra2 {[%clk 0:00:07]} 59. Kf1
{[%clk 0:01:44.1]} 59... Ra1+ {[%clk 0:00:07]} 60. Ke2 {[%clk 0:01:43.9]} 60...
f3+ {[%clk 0:00:07.6]} 61. Ke3 {[%clk 0:01:44.6]} 61... Re1+ {[%clk 0:00:07.8]}
62. Kd2 {[%clk 0:01:44.3]} 62... f2 {[%clk 0:00:08.4]} 63. Rb3+ {[%clk 0:01:42]}
63... Kg2 {[%clk 0:00:08.2]} 0-1

[Event "Late-Titled-Tuesday-Blitz-October-24-2023"]
[Site "Chess.com"]
[Date "2023.10.24"]
[Round "1"]
[White "Andrei_Skvortsov"]
[Black "wild3000"]
[Result "1-0"]
[WhiteElo "2668"]
[BlackElo "2369"]
[TimeControl "180+1"]
[EndTime "14:06:41 PDT"]
[Termination "Andrei_Skvortsov won on time"]

1. e4 {[%clk 0:03:00.9]} 1... e5 {[%clk 0:02:58.7]} 2. d4 {[%clk 0:03:01.4]}
2... exd4 {[%clk 0:02:58.5]} 3. Qxd4 {[%clk 0:03:02.3]} 3... Nc6 {[%clk
0:02:58.1]} 4. Qd3 {[%clk 0:03:03.2]} 4... d6 {[%clk 0:02:57.8]} 5. Nc3 {[%clk
0:03:03.6]} 5... Nf6 {[%clk 0:02:56.9]} 6. Nf3 {[%clk 0:03:03.5]} 6... Be7
{[%clk 0:02:56.6]} 7. Bf4 {[%clk 0:03:03.1]} 7... O-O {[%clk 0:02:56.4]} 8.
O-O-O {[%clk 0:03:03.7]} 8... Bg4 {[%clk 0:02:49.4]} 9. h3 {[%clk 0:03:03.6]}
9... Bxf3 {[%clk 0:02:42.5]} 10. Qxf3 {[%clk 0:03:04.5]} 10... Ne5 {[%clk
0:02:41.7]} 11. Bxe5 {[%clk 0:03:02.9]} 11... dxe5 {[%clk 0:02:42.6]} 12. Rxd8
{[%clk 0:03:02.4]} 12... Raxd8 {[%clk 0:02:43.5]} 13. Bd3 {[%clk 0:03:00.2]}
13... a6 {[%clk 0:02:41.6]} 14. Rd1 {[%clk 0:02:59.5]} 14... Bb4 {[%clk
0:02:38.3]} 15. Nd5 {[%clk 0:02:58.8]} 15... Nxd5 {[%clk 0:02:36.5]} 16. exd5
{[%clk 0:02:59.7]} 16... g6 {[%clk 0:02:34.2]} 17. c3 {[%clk 0:02:58.7]} 17...
Bd6 {[%clk 0:02:34.1]} 18. Qf6 {[%clk 0:02:54.2]} 18... Rfe8 {[%clk 0:02:30.4]}
19. Be4 {[%clk 0:02:54.2]} 19... Be7 {[%clk 0:02:28.8]} 20. Qf3 {[%clk
0:02:54.1]} 20... f5 {[%clk 0:02:23.9]} 21. Bc2 {[%clk 0:02:54.7]} 21... Bd6
{[%clk 0:02:16.6]} 22. g4 {[%clk 0:02:51.6]} 22... e4 {[%clk 0:02:14.7]} 23. Qe2
{[%clk 0:02:51]} 23... Rf8 {[%clk 0:02:09.6]} 24. gxf5 {[%clk 0:02:49.5]} 24...
gxf5 {[%clk 0:02:10.5]} 25. Qh5 {[%clk 0:02:44.9]} 25... Kh8 {[%clk 0:02:01.6]}
26. f3 {[%clk 0:02:44.3]} 26... Rde8 {[%clk 0:01:58.8]} 27. fxe4 {[%clk
0:02:43.9]} 27... fxe4 {[%clk 0:01:58.9]} 28. Re1 {[%clk 0:02:44.4]} 28... Re5
{[%clk 0:01:50.1]} 29. Qh4 {[%clk 0:02:38.6]} 29... Be7 {[%clk 0:01:35.4]} 30.
Qg4 {[%clk 0:02:28.8]} 30... Bg5+ {[%clk 0:01:31.9]} 31. Kb1 {[%clk 0:02:27.7]}
31... Kg7 {[%clk 0:01:11.3]} 32. a4 {[%clk 0:02:23.2]} 32... Rf4 {[%clk
0:00:58.8]} 33. Qc8 {[%clk 0:02:14.8]} 33... e3 {[%clk 0:00:49.2]} 34. Qxb7
{[%clk 0:02:08.9]} 34... Re7 {[%clk 0:00:47]} 35. Qxa6 {[%clk 0:02:08.3]} 35...
Bh4 {[%clk 0:00:42.4]} 36. Re2 {[%clk 0:02:07.1]} 36... Rf2 {[%clk 0:00:38.8]}
37. Qd3 {[%clk 0:02:00.8]} 37... Rxe2 {[%clk 0:00:34.9]} 38. Qxe2 {[%clk
0:01:51.6]} 38... Bf2 {[%clk 0:00:32.7]} 39. a5 {[%clk 0:01:51.7]} 39... Kf6
{[%clk 0:00:24.9]} 40. Bd3 {[%clk 0:01:48.2]} 40... Ke5 {[%clk 0:00:20.3]} 41.
a6 {[%clk 0:01:45.7]} 41... c5 {[%clk 0:00:13.5]} 42. dxc6 {[%clk 0:01:45.2]}
42... Kd6 {[%clk 0:00:13.6]} 43. Qf3 {[%clk 0:01:43]} 43... Ra7 {[%clk
0:00:12.5]} 44. Qf6+ {[%clk 0:01:39.1]} 44... Kc7 {[%clk 0:00:11.3]} 45. Qd4
{[%clk 0:01:33.3]} 45... e2 {[%clk 0:00:02.3]} 46. Qxf2 {[%clk 0:01:28.1]} 46...
Ra8 {[%clk 0:00:02.5]} 47. Bxe2 {[%clk 0:01:24.3]} 47... h5 {[%clk 0:00:02.4]}
48. Qf7+ {[%clk 0:01:24.1]} 48... Kd6 {[%clk 0:00:02.3]} 49. Qd7+ {[%clk
0:01:23.6]} 49... Kc5 {[%clk 0:00:02.4]} 50. b4+ {[%clk 0:01:22.7]} 1-0

[Event "Late-Titled-Tuesday-Blitz-October-24-2023"]
[Site "Chess.com"]
[Date "2023.10.24"]
[Round "1"]
[White "vladislavkovalev"]
[Black "czasnaszachy"]
[Result "1-0"]
[WhiteElo "2866"]
[BlackElo "2489"]
[TimeControl "180+1"]
[EndTime "14:06:45 PDT"]
[Termination "vladislavkovalev won by resignation"]

1. e4 {[%clk 0:03:00.9]} 1... c5 {[%clk 0:03:00]} 2. Nf3 {[%clk 0:03:00.2]} 2...
d6 {[%clk 0:03:00.1]} 3. Bb5+ {[%clk 0:03:00.6]} 3... Nd7 {[%clk 0:02:59.5]} 4.
O-O {[%clk 0:03:00.6]} 4... a6 {[%clk 0:02:59.6]} 5. Bd3 {[%clk 0:03:00.4]} 5...
Ngf6 {[%clk 0:02:58.2]} 6. c3 {[%clk 0:03:00.8]} 6... Ne5 {[%clk 0:02:52]} 7.
Be2 {[%clk 0:02:48.3]} 7... Nxf3+ {[%clk 0:02:49.2]} 8. Bxf3 {[%clk 0:02:49.2]}
8... e5 {[%clk 0:02:24.7]} 9. d4 {[%clk 0:02:49.5]} 9... Be7 {[%clk 0:02:24.1]}
10. dxc5 {[%clk 0:02:38.9]} 10... dxc5 {[%clk 0:02:23.7]} 11. Qxd8+ {[%clk
0:02:39.8]} 11... Bxd8 {[%clk 0:02:23.8]} 12. Be3 {[%clk 0:02:40.4]} 12... Be7
{[%clk 0:02:14.8]} 13. c4 {[%clk 0:02:39]} 13... Be6 {[%clk 0:02:01.5]} 14. Rc1
{[%clk 0:02:26.6]} 14... Ng4 {[%clk 0:01:38.9]} 15. Bxg4 {[%clk 0:02:25.4]}
15... Bxg4 {[%clk 0:01:39.1]} 16. Nc3 {[%clk 0:02:26.1]} 16... Be6 {[%clk
0:01:37.9]} 17. Nd5 {[%clk 0:02:24.4]} 17... Bxd5 {[%clk 0:01:37.9]} 18. cxd5
{[%clk 0:02:25.3]} 18... Rc8 {[%clk 0:01:36.9]} 19. a4 {[%clk 0:02:22.5]} 19...
a5 {[%clk 0:01:31.6]} 20. Rc3 {[%clk 0:02:19.5]} 20... b6 {[%clk 0:01:21.8]} 21.
Kf1 {[%clk 0:02:15.4]} 21... Kd7 {[%clk 0:01:21.8]} 22. Ke2 {[%clk 0:02:16.2]}
22... Bd6 {[%clk 0:01:21.2]} 23. Kd3 {[%clk 0:02:16.5]} 23... h5 {[%clk
0:01:14.2]} 24. Kc4 {[%clk 0:02:12.7]} 24... g6 {[%clk 0:01:13.9]} 25. Rb3
{[%clk 0:02:07]} 25... Kc7 {[%clk 0:01:12.6]} 26. Bg5 {[%clk 0:02:01.7]} 26...
f5 {[%clk 0:01:05.5]} 27. h4 {[%clk 0:01:32.3]} 27... fxe4 {[%clk 0:01:03.3]}
28. Rg3 {[%clk 0:01:32]} 28... Rhf8 {[%clk 0:00:53.3]} 29. Be3 {[%clk
0:01:32.4]} 29... Rf6 {[%clk 0:00:52]} 30. Rg5 {[%clk 0:01:31.6]} 30... Rcf8
{[%clk 0:00:50.8]} 31. g4 {[%clk 0:01:28.5]} 31... hxg4 {[%clk 0:00:49.9]} 32.
Rxg4 {[%clk 0:01:29.4]} 32... Rh8 {[%clk 0:00:33.5]} 33. Rag1 {[%clk 0:01:25.2]}
33... Rh5 {[%clk 0:00:30.7]} 34. Rxg6 {[%clk 0:01:13.3]} 34... Rxg6 {[%clk
0:00:19.6]} 35. Rxg6 {[%clk 0:01:14.2]} 35... Rxh4 {[%clk 0:00:20.1]} 36. Rg7+
{[%clk 0:01:14.7]} 36... Kc8 {[%clk 0:00:20.2]} 37. Kb5 {[%clk 0:01:15.5]} 37...
Rh8 {[%clk 0:00:15.6]} 38. Kc6 {[%clk 0:01:12.7]} 38... Bf8 {[%clk 0:00:15.7]}
39. Rf7 {[%clk 0:01:07.1]} 39... Bh6 {[%clk 0:00:15.2]} 40. d6 {[%clk 0:01:03]}
40... Bxe3 {[%clk 0:00:14.5]} 41. fxe3 {[%clk 0:01:03.9]} 41... Rd8 {[%clk
0:00:09.4]} 42. d7+ {[%clk 0:00:57.2]} 42... Kb8 {[%clk 0:00:08.9]} 43. Re7
{[%clk 0:00:57.8]} 43... c4 {[%clk 0:00:08.8]} 44. Re8 {[%clk 0:00:58]} 1-0

[Event "Late-Titled-Tuesday-Blitz-October-24-2023"]
[Site "Chess.com"]
[Date "2023.10.24"]
[Round "1"]
[White "Mikhail_Golubev"]
[Black "TheMagician"]
[Result "0-1"]
[WhiteElo "2549"]
[BlackElo "2176"]
[TimeControl "180+1"]
[EndTime "14:06:46 PDT"]
[Termination "TheMagician won on time"]

1. e4 {[%clk 0:02:42.3]} 1... c6 {[%clk 0:02:53.2]} 2. d4 {[%clk 0:02:38.8]}
2... d5 {[%clk 0:02:51.9]} 3. Nc3 {[%clk 0:02:39.3]} 3... dxe4 {[%clk
0:02:50.8]} 4. Nxe4 {[%clk 0:02:40.2]} 4... Nd7 {[%clk 0:02:49.4]} 5. Ng5 {[%clk
0:02:37.6]} 5... e6 {[%clk 0:02:38.5]} 6. Bd3 {[%clk 0:02:34.1]} 6... h6 {[%clk
0:02:28.7]} 7. Qh5 {[%clk 0:02:09.1]} 7... Qe7 {[%clk 0:02:10.8]} 8. Bg6 {[%clk
0:00:30.3]} 8... Ndf6 {[%clk 0:01:25]} 9. Bxf7+ {[%clk 0:00:20.1]} 9... Kd8
{[%clk 0:01:23.4]} 10. Qh4 {[%clk 0:00:08.5]} 10... hxg5 {[%clk 0:01:21.7]} 11.
Qxh8 {[%clk 0:00:07.7]} 11... Qxf7 {[%clk 0:01:21.6]} 12. Bxg5 {[%clk
0:00:08.1]} 12... Kc7 {[%clk 0:01:07.2]} 13. Nf3 {[%clk 0:00:05.6]} 13... Bd6
{[%clk 0:01:03.3]} 14. Ne5 {[%clk 0:00:05.5]} 14... Bxe5 {[%clk 0:01:00.4]} 15.
dxe5 {[%clk 0:00:05.2]} 15... Ne4 {[%clk 0:01:00.8]} 16. Be3 {[%clk 0:00:04.5]}
16... b6 {[%clk 0:00:36.5]} 17. O-O-O {[%clk 0:00:03.5]} 17... Bb7 {[%clk
0:00:27.3]} 18. Qh4 {[%clk 0:00:03.5]} 18... Nc5 {[%clk 0:00:20.7]} 19. Bxc5
{[%clk 0:00:03.3]} 19... bxc5 {[%clk 0:00:20.4]} 20. f3 {[%clk 0:00:03.3]} 20...
Ne7 {[%clk 0:00:19.9]} 21. Qc4 {[%clk 0:00:02.3]} 21... Kb6 {[%clk 0:00:19.9]}
22. Qb3+ {[%clk 0:00:02.3]} 22... Kc7 {[%clk 0:00:20]} 23. Qa3 {[%clk
0:00:02.2]} 23... Nd5 {[%clk 0:00:18]} 0-1

[Event "Late-Titled-Tuesday-Blitz-October-24-2023"]
[Site "Chess.com"]
[Date "2023.10.24"]
[Round "1"]
[White "luksona14"]
[Black "GMJustin"]
[Result "0-1"]
[WhiteElo "2580"]
[BlackElo "2262"]
[TimeControl "180+1"]
[EndTime "14:06:48 PDT"]
[Termination "GMJustin won by checkmate"]

1. d4 {[%clk 0:02:56.5]} 1... Nf6 {[%clk 0:02:39]} 2. c4 {[%clk 0:02:54.2]} 2...
e6 {[%clk 0:02:38.5]} 3. Nf3 {[%clk 0:02:52.7]} 3... d5 {[%clk 0:02:36.4]} 4.
Nc3 {[%clk 0:02:50.9]} 4... Nbd7 {[%clk 0:02:35]} 5. cxd5 {[%clk 0:02:49.9]}
5... exd5 {[%clk 0:02:33.3]} 6. Bg5 {[%clk 0:02:50]} 6... Be7 {[%clk 0:02:29.9]}
7. e3 {[%clk 0:02:50.2]} 7... O-O {[%clk 0:02:27.8]} 8. Bd3 {[%clk 0:02:50.7]}
8... Re8 {[%clk 0:02:22.5]} 9. Qc2 {[%clk 0:02:50.5]} 9... a6 {[%clk 0:02:16.1]}
10. O-O {[%clk 0:02:45.5]} 10... Nf8 {[%clk 0:02:13.3]} 11. Rad1 {[%clk
0:02:37.2]} 11... Bg4 {[%clk 0:02:05.7]} 12. Rc1 {[%clk 0:02:22]} 12... c6
{[%clk 0:01:59.4]} 13. Ne5 {[%clk 0:02:21.8]} 13... Be6 {[%clk 0:01:56.2]} 14.
f4 {[%clk 0:02:21.5]} 14... Ng4 {[%clk 0:01:35.1]} 15. Bxe7 {[%clk 0:02:17.6]}
15... Qxe7 {[%clk 0:01:31.7]} 16. Qe2 {[%clk 0:02:15.9]} 16... Qh4 {[%clk
0:00:33]} 17. h3 {[%clk 0:02:05.9]} 17... Nh6 {[%clk 0:00:27]} 18. f5 {[%clk
0:01:57.7]} 18... Bc8 {[%clk 0:00:22.7]} 19. Rf4 {[%clk 0:01:37.7]} 19... Qg3
{[%clk 0:00:15.1]} 20. f6 {[%clk 0:01:30.1]} 20... Ng6 {[%clk 0:00:08.4]} 21.
Rf3 {[%clk 0:01:28.9]} 21... Qg5 {[%clk 0:00:03.9]} 22. Nxg6 {[%clk 0:01:28.2]}
22... hxg6 {[%clk 0:00:03.3]} 23. fxg7 {[%clk 0:01:26.8]} 23... Kxg7 {[%clk
0:00:03.6]} 24. Rcf1 {[%clk 0:01:27.1]} 24... Bf5 {[%clk 0:00:03.5]} 25. e4
{[%clk 0:01:23.6]} 25... dxe4 {[%clk 0:00:03.3]} 26. Bxe4 {[%clk 0:01:23.6]}
26... Bxe4 {[%clk 0:00:02.5]} 27. Nxe4 {[%clk 0:01:22.4]} 27... Qd5 {[%clk
0:00:02.6]} 28. Re3 {[%clk 0:01:18.9]} 28... Nf5 {[%clk 0:00:02.4]} 29. Rxf5
{[%clk 0:01:14.4]} 29... gxf5 {[%clk 0:00:01.7]} 30. Nc3 {[%clk 0:00:58.5]}
30... Qxd4 {[%clk 0:00:01.4]} 31. Nd1 {[%clk 0:00:57.2]} 31... f4 {[%clk
0:00:01.7]} 32. Qg4+ {[%clk 0:00:57.2]} 32... Kf8 {[%clk 0:00:01.9]} 33. Kh2
{[%clk 0:00:53]} 33... Rxe3 {[%clk 0:00:02]} 34. Qh5 {[%clk 0:00:47.4]} 34...
Re1 {[%clk 0:00:02]} 35. h4 {[%clk 0:00:45.1]} 35... Ke8 {[%clk 0:00:02.1]} 36.
Qh8+ {[%clk 0:00:43.5]} 36... Qxh8 {[%clk 0:00:01.1]} 37. Nf2 {[%clk 0:00:43.5]}
37... Qxh4+ {[%clk 0:00:01.2]} 38. Nh3 {[%clk 0:00:44.4]} 38... Qg3# {[%clk
0:00:01.5]} 0-1

[Event "Late-Titled-Tuesday-Blitz-October-24-2023"]
[Site "Chess.com"]
[Date "2023.10.24"]
[Round "1"]
[White "Nf3c5"]
[Black "R2D2PTY"]
[Result "1/2-1/2"]
[WhiteElo "2606"]
[BlackElo "2300"]
[TimeControl "180+1"]
[EndTime "14:06:50 PDT"]
[Termination "Game drawn by repetition"]

1. d4 {[%clk 0:02:58.3]} 1... Nf6 {[%clk 0:02:58.8]} 2. Nf3 {[%clk 0:02:57.2]}
2... e6 {[%clk 0:02:59]} 3. Bg5 {[%clk 0:02:56.9]} 3... d5 {[%clk 0:02:58.3]} 4.
Nbd2 {[%clk 0:02:55.5]} 4... Be7 {[%clk 0:02:58.2]} 5. e3 {[%clk 0:02:54.1]}
5... O-O {[%clk 0:02:56.2]} 6. Bd3 {[%clk 0:02:53.4]} 6... h6 {[%clk 0:02:52.8]}
7. h4 {[%clk 0:02:49.1]} 7... b6 {[%clk 0:02:49.8]} 8. Ne5 {[%clk 0:02:48.2]}
8... Bb7 {[%clk 0:02:47.7]} 9. Qf3 {[%clk 0:02:47.5]} 9... Nbd7 {[%clk
0:02:46.9]} 10. Rh3 {[%clk 0:02:39.1]} 10... Nxe5 {[%clk 0:02:35.1]} 11. dxe5
{[%clk 0:02:37]} 11... Ne4 {[%clk 0:02:34]} 12. Bxh6 {[%clk 0:01:37.6]} 12...
gxh6 {[%clk 0:01:57.5]} 13. O-O-O {[%clk 0:01:03.3]} 13... f5 {[%clk 0:01:41.4]}
14. exf6 {[%clk 0:00:57.9]} 14... Bxf6 {[%clk 0:01:28.2]} 15. Qg4+ {[%clk
0:00:47.4]} 15... Kh8 {[%clk 0:01:13.4]} 16. Nxe4 {[%clk 0:00:31.7]} 16... dxe4
{[%clk 0:00:45]} 17. Bxe4 {[%clk 0:00:31.5]} 17... Qc8 {[%clk 0:00:34.3]} 18.
Bxb7 {[%clk 0:00:20.6]} 18... Qxb7 {[%clk 0:00:34.5]} 19. Qxe6 {[%clk
0:00:16.2]} 19... Qxg2 {[%clk 0:00:23]} 20. Rg3 {[%clk 0:00:13.4]} 20... Qxf2
{[%clk 0:00:23.3]} 21. Rdg1 {[%clk 0:00:13.6]} 21... Rad8 {[%clk 0:00:15.9]} 22.
a3 {[%clk 0:00:13.7]} 22... Qd2+ {[%clk 0:00:14.7]} 23. Kb1 {[%clk 0:00:14.1]}
23... Qd5 {[%clk 0:00:13.9]} 24. Rg8+ {[%clk 0:00:13.8]} 24... Rxg8 {[%clk
0:00:14.3]} 25. Qxf6+ {[%clk 0:00:14.2]} 25... Kh7 {[%clk 0:00:12.9]} 26. Qe7+
{[%clk 0:00:14.3]} 26... Kh8 {[%clk 0:00:11.1]} 27. Qf6+ {[%clk 0:00:14.5]}
27... Kh7 {[%clk 0:00:11.1]} 28. Qe7+ {[%clk 0:00:13.5]} 28... Kh8 {[%clk
0:00:10.2]} 29. Qf6+ {[%clk 0:00:13.7]} 1/2-1/2

[Event "Late-Titled-Tuesday-Blitz-October-24-2023"]
[Site "Chess.com"]
[Date "2023.10.24"]
[Round "1"]
[White "ikhasu"]
[Black "hblanco"]
[Result "0-1"]
[WhiteElo "2410"]
[BlackElo "2736"]
[TimeControl "180+1"]
[EndTime "14:06:58 PDT"]
[Termination "hblanco won on time"]

1. d4 {[%clk 0:02:59.3]} 1... d5 {[%clk 0:02:59.3]} 2. Bf4 {[%clk 0:02:58.8]}
2... Nf6 {[%clk 0:02:58.6]} 3. e3 {[%clk 0:02:59]} 3... e6 {[%clk 0:02:59.1]} 4.
Nd2 {[%clk 0:02:57.8]} 4... Bd6 {[%clk 0:02:59.6]} 5. Ngf3 {[%clk 0:02:56.6]}
5... O-O {[%clk 0:02:58.5]} 6. Bd3 {[%clk 0:02:54.8]} 6... b6 {[%clk 0:02:59]}
7. Qe2 {[%clk 0:02:53.5]} 7... Bb7 {[%clk 0:02:58.8]} 8. Bg3 {[%clk 0:02:51.3]}
8... Ne4 {[%clk 0:02:58.4]} 9. Bxd6 {[%clk 0:02:39.6]} 9... cxd6 {[%clk
0:02:45.4]} 10. O-O {[%clk 0:02:34.2]} 10... Nd7 {[%clk 0:02:44.8]} 11. c4
{[%clk 0:02:33.8]} 11... Nxd2 {[%clk 0:02:25.3]} 12. Nxd2 {[%clk 0:02:33.2]}
12... dxc4 {[%clk 0:02:23.3]} 13. Nxc4 {[%clk 0:02:26]} 13... Nf6 {[%clk
0:02:24.2]} 14. Rfd1 {[%clk 0:02:25.2]} 14... Rc8 {[%clk 0:02:19.8]} 15. Rac1
{[%clk 0:02:23.9]} 15... Qe7 {[%clk 0:02:17.9]} 16. b3 {[%clk 0:02:18.4]} 16...
g6 {[%clk 0:02:13.6]} 17. Qb2 {[%clk 0:02:17.3]} 17... h5 {[%clk 0:01:57.2]} 18.
Qa3 {[%clk 0:02:16.6]} 18... Rfd8 {[%clk 0:01:33.2]} 19. Qxa7 {[%clk 0:02:15.4]}
19... Ra8 {[%clk 0:01:33.7]} 20. Qxb6 {[%clk 0:02:14.6]} 20... Rxa2 {[%clk
0:01:33.5]} 21. Ra1 {[%clk 0:02:07]} 21... Nd5 {[%clk 0:01:31.4]} 22. Qxd8+
{[%clk 0:01:37.8]} 22... Qxd8 {[%clk 0:01:30.9]} 23. Rxa2 {[%clk 0:01:38.3]}
23... Nc3 {[%clk 0:01:31.4]} 24. Ra7 {[%clk 0:01:32.7]} 24... Nxd1 {[%clk
0:01:30.2]} 25. Rxb7 {[%clk 0:01:32.7]} 25... Qa8 {[%clk 0:01:19.8]} 26. Nxd6
{[%clk 0:01:23]} 26... Qa1 {[%clk 0:01:10.8]} 27. Bf1 {[%clk 0:01:04]} 27... f5
{[%clk 0:01:00.8]} 28. Rb8+ {[%clk 0:00:50]} 28... Kg7 {[%clk 0:01:00.2]} 29.
Rb7+ {[%clk 0:00:49.4]} 29... Kf8 {[%clk 0:00:59.9]} 30. Rf7+ {[%clk 0:00:29]}
30... Kg8 {[%clk 0:00:59.6]} 31. Rd7 {[%clk 0:00:22.2]} 31... Qa2 {[%clk
0:00:55.4]} 32. h3 {[%clk 0:00:05.4]} 32... Qxf2+ {[%clk 0:00:54.8]} 33. Kh2
{[%clk 0:00:05.5]} 33... Nxe3 {[%clk 0:00:51.1]} 34. Ne8 {[%clk 0:00:04.1]}
34... Nxf1+ {[%clk 0:00:47.9]} 35. Kh1 {[%clk 0:00:04.3]} 35... Ng3+ {[%clk
0:00:36.1]} 36. Kh2 {[%clk 0:00:03.6]} 36... Ne4 {[%clk 0:00:36.7]} 37. Rg7+
{[%clk 0:00:01.7]} 37... Kf8 {[%clk 0:00:36.3]} 0-1

[Event "Late-Titled-Tuesday-Blitz-October-24-2023"]
[Site "Chess.com"]
[Date "2023.10.24"]
[Round "1"]
[White "Nekoo04"]
[Black "dimitrisl"]
[Result "0-1"]
[WhiteElo "2252"]
[BlackElo "2600"]
[TimeControl "180+1"]
[EndTime "14:06:59 PDT"]
[Termination "dimitrisl won by checkmate"]

1. d4 {[%clk 0:03:00.9]} 1... Nf6 {[%clk 0:03:00]} 2. c4 {[%clk 0:03:00.7]} 2...
g6 {[%clk 0:03:00.6]} 3. Nc3 {[%clk 0:03:00.5]} 3... Bg7 {[%clk 0:03:01.1]} 4.
e4 {[%clk 0:03:00.8]} 4... d6 {[%clk 0:03:02]} 5. Nf3 {[%clk 0:03:01.4]} 5...
O-O {[%clk 0:03:02.4]} 6. Be2 {[%clk 0:03:02.1]} 6... Nbd7 {[%clk 0:03:01.2]} 7.
O-O {[%clk 0:03:00.7]} 7... e5 {[%clk 0:03:01.5]} 8. d5 {[%clk 0:03:01.2]} 8...
Nc5 {[%clk 0:03:01.7]} 9. Qc2 {[%clk 0:03:01.9]} 9... a5 {[%clk 0:03:02]} 10.
Bg5 {[%clk 0:03:02.4]} 10... h6 {[%clk 0:03:00.6]} 11. Be3 {[%clk 0:03:02.8]}
11... b6 {[%clk 0:02:56.4]} 12. Nd2 {[%clk 0:03:02.4]} 12... Ng4 {[%clk
0:02:55.3]} 13. Bxg4 {[%clk 0:03:01.7]} 13... Bxg4 {[%clk 0:02:56.2]} 14. a3
{[%clk 0:03:00.4]} 14... a4 {[%clk 0:02:47.2]} 15. Bxc5 {[%clk 0:03:00]} 15...
dxc5 {[%clk 0:02:45.5]} 16. Nxa4 {[%clk 0:02:59.6]} 16... Bd7 {[%clk 0:02:43.7]}
17. Nc3 {[%clk 0:02:58.2]} 17... f5 {[%clk 0:02:44.4]} 18. b4 {[%clk 0:02:53.4]}
18... Qe7 {[%clk 0:02:41.3]} 19. Qb3 {[%clk 0:02:02.6]} 19... h5 {[%clk
0:02:37.1]} 20. Nb5 {[%clk 0:01:54.1]} 20... Bh6 {[%clk 0:02:24.7]} 21. Rad1
{[%clk 0:01:33.2]} 21... h4 {[%clk 0:01:58.9]} 22. Nxc7 {[%clk 0:01:23.3]} 22...
Ba4 {[%clk 0:01:55.1]} 23. Qh3 {[%clk 0:01:06.7]} 23... Qxc7 {[%clk 0:01:53.6]}
24. Qxh4 {[%clk 0:01:06.1]} 24... Bxd1 {[%clk 0:01:53.1]} 25. Qxh6 {[%clk
0:01:04.8]} 25... Bh5 {[%clk 0:01:52.5]} 26. exf5 {[%clk 0:01:00.6]} 26... Qg7
{[%clk 0:01:50.7]} 27. Qe3 {[%clk 0:00:50.8]} 27... gxf5 {[%clk 0:01:49.9]} 28.
bxc5 {[%clk 0:00:50.7]} 28... f4 {[%clk 0:01:46.8]} 29. Qc3 {[%clk 0:00:35.6]}
29... bxc5 {[%clk 0:01:41.3]} 30. Ne4 {[%clk 0:00:34.1]} 30... f3 {[%clk
0:01:37.3]} 31. g3 {[%clk 0:00:29.5]} 31... Rac8 {[%clk 0:00:51.7]} 32. Rd1
{[%clk 0:00:18.8]} 32... Qg4 {[%clk 0:00:44]} 33. Qxe5 {[%clk 0:00:18.1]} 33...
Qh3 {[%clk 0:00:30.4]} 34. Nf6+ {[%clk 0:00:17.8]} 34... Rxf6 {[%clk 0:00:27.6]}
35. Qxf6 {[%clk 0:00:11.9]} 35... Qg2# {[%clk 0:00:27.4]} 0-1